Cogmind - Beta 14 @@@ ROGUE MODE // 2024.10.06 @ 12:40:00 Player: siona Result: Self-destructed Performance ------------- Evolutions (1) 500 Regions Visited (3) 600 Robots Destroyed (26) 130 Value Destroyed (536) 536 Prototype IDs (1) 20 Alien Tech Used (0) 0 Bonus (0) 0 TOTAL SCORE: 1786 Bonus ------- None Cogmind --------- Core Integrity 325/400 Matter 268/300 Energy 188/250 System Corruption 0% Temperature Cool (6) Movement Treading (160) Location -9/Materials Parts ------- > --- POWER (1) -------- Ion Engine > --- PROPULSION (3) --- Light Treads Light Treads > --- UTILITY (3) ------ Seismic Detector Medium Armor Plating Splice Drone Bay (6/6) > --- WEAPON (2) ------- Autogun > --- INVENTORY (5) ---- Light Treads Light Treads Signal Interpreter Grenade Launcher Peak State ------------ > --- POWER ------------ Light Nuclear Core > --- PROPULSION ------- Light Treads Light Treads Light Treads > --- UTILITY ---------- Seismic Detector Medium Armor Plating Splice Drone Bay > --- WEAPON ----------- Assault Rifle Autogun > --- INVENTORY -------- Ion Engine Light Treads Light Treads Signal Interpreter Grenade Launcher [Rating: 19] Favorites ----------- Power Light Nuclear Core Engine Ion Engine Power Core Light Nuclear Core Propulsion Light Treads Treads Light Treads Utility Splice Drone Bay Device Splice Drone Bay Protection Medium Armor Plating Weapon Assault Rifle Ballistic Gun Assault Rifle Build | -11 -10 -10 -9 ------- Run | Yrd Mat Min Mat Slots Evolved 2 | . . . 2 Power . | . . . . Propulsion 1 | . . . 1 Utility 1 | . . . 1 Weapon . | . . . . Parts Attached 13 | 5 1 3 4 Power 3 | 1 . 1 1 Engine 2 | 1 . . 1 Core 1 | . . 1 . Reactor . | . . . . Propulsion 4 | 2 1 . 1 Treads 4 | 2 1 . 1 Leg . | . . . . Wheel . | . . . . Hover . | . . . . Flight . | . . . . Utility 3 | . . 2 1 Device 2 | . . 2 . Storage . | . . . . Processor . | . . . . Hackware . | . . . . Protection 1 | . . . 1 Artifact . | . . . . Weapon 3 | 2 . . 1 Energy Gun . | . . . . Energy Cannon . | . . . . Ballistic Gun 3 | 2 . . 1 Ballistic Cannon . | . . . . Launcher . | . . . . Special Weapon . | . . . . Impact Weapon . | . . . . Slashing Weapon . | . . . . Piercing Weapon . | . . . . Special Melee Weapon . | . . . . Unidentified Prototypes 1 | . . 1 . Parts Lost 4 | . . . 4 Power 1 | . . . 1 Propulsion 1 | . . . 1 Utility . | . . . . Weapon 2 | . . . 2 Highest Loss Streak 3 | . . . 3 To Critical Strikes . | . . . . Average Slot Usage (%) 84 | . 71 84 93 Engine 4 | . 14 3 . Core 8 | . . 10 10 Treads 28 | . 28 28 29 Device 13 | . . 13 22 Protection 1 | . . . 9 Ballistic Gun 26 | . 28 28 20 Peak Build Rating 19 | 5 5 15 19 Average Rating 12 | 4 5 13 17 On Entrance 6 | . 5 5 15 Naked Turns . | . . . . Heaviest Build 26 | 9 9 18 26 Greatest Support 60 | 40 40 40 60 Greatest Overweight (x) 1 | 1 . . . Average Overweight (x) . | . . . . Largest Inventory Capacity 5 | 5 5 5 5 Average Capacity 5 | 5 5 5 5 Most Carried 5 | 1 4 5 5 Average Carried 4 | . 3 4 4 Final Capacity 5 | 5 5 5 5 Final Carried 5 | 1 4 5 4 Class Distribution -------------------- 86% | Mutant 13% | Scavenger-Mutant Dominant Class ---------------- Mutant | -10/Materials Mutant | -10/Mines Scavenger-Mutant | -9/Materials Resources | -11 -10 -10 -9 ----------- Run | Yrd Mat Min Mat Matter Collected 878 | 235 113 286 244 Remotely . | . . . . Salvage Created 748 | . 180 187 381 Parts 75 | . 17 25 33 Haulers Intercepted 1 | . 1 . . Recyclers Shooed . | . . . . Parts Field Recycled . | . . . . Retrieved Matter . | . . . . Parts Self-Destructed . | . . . . Prevented . | . . . . Kills | -11 -10 -10 -9 ------- Run | Yrd Mat Min Mat Combat Hostiles Destroyed 18 | . 4 7 7 Guns 18 | . 4 7 7 Classes Destroyed 9 | . 5 1 3 Worker 1 | . . . 1 Builder 2 | . 1 . 1 Tunneler 1 | . . 1 . Hauler 1 | . 1 . . Operator 1 | . . . 1 Watcher 2 | . 1 . 1 Swarmer 8 | . 3 5 . Grunt 8 | . 1 2 5 Sentry 2 | . . . 2 Best Kill Streak 4 | . 4 3 3 Combat Bots Only 3 | . 3 3 1 Max Kills in Single Turn 2 | . 2 1 1 Gunslinging . | . . . . Exploded . | . . . . Melee . | . . . . Uniques/NPCs Destroyed . | . . . . Combat | -11 -10 -10 -9 -------- Run | Yrd Mat Min Mat Hostile Shots Fired 125 | . 39 28 58 Missed 39 | . 15 7 17 Damage Taken 937 | . 213 193 531 Core 194 | . 42 77 75 Absorbed by Shields . | . . . . Core Remaining (%) 76 | 100 . 52 . Volleys Fired 86 | . 24 20 42 Largest 2 | . 2 2 2 Hottest 43 | . 40 40 43 Shots Fired 165 | . 48 42 75 Gun 165 | . 48 42 75 Cannon . | . . . . Launcher . | . . . . Special . | . . . . Kinetic 165 | . 48 42 75 Thermal . | . . . . Explosive . | . . . . Electromagnetic . | . . . . Robot Hit Streak 9 | . 9 7 9 Robot Miss Streak 9 | . 4 9 2 Penetration Max . | . . . . Secondary Targets 1 | . 1 . . Max Gunslinging Chain 1 | . 1 . . Shots Hit Robots 94 | . 22 21 51 Core Hits 36 | . 9 9 18 Critical Kills . | . . . . Critical Parts Destroyed . | . . . . Critical Strikes . | . . . . Melee Attacks . | . . . . Impact . | . . . . Slashing . | . . . . Piercing . | . . . . Sneak Attacks . | . . . . Combat Hostiles . | . . . . Follow-up Attacks . | . . . . Damage Inflicted 1263 | . 321 265 677 Guns 1263 | . 321 265 677 Cannons . | . . . . Explosions . | . . . . Melee . | . . . . Ramming . | . . . . Kinetic 1263 | . 321 265 677 Thermal . | . . . . Explosive . | . . . . Electromagnetic . | . . . . Impact . | . . . . Slashing . | . . . . Piercing . | . . . . Highest Corruption 4 | . 4 4 . Average Corruption 3 | . 3 4 . Corruption Purged . | . . . . Corruption Blocked . | . . . . Effects 40 | . 5 35 . Message Errors 7 | . . 7 . Matter Fused 13 | . 3 10 . Heat Flow Errors 2 | . . 2 . Energy Discharges 9 | . 1 8 . Data Loss (minor) 3 | . 1 2 . Data Loss (major) 4 | . . 4 . Misfires 2 | . . 2 . Overload Shots . | . . . . Overflow Damage . | . . . . Projectiles . | . . . . Explosions . | . . . . Melee . | . . . . Knockbacks . | . . . . Impact . | . . . . Kinetic . | . . . . Secondary . | . . . . Self-Inflicted Damage . | . . . . Shots . | . . . . Rammed 1 | . . 1 . Targets Rammed 1 | . . 1 . Kicked . | . . . . Crushed . | . . . . Highest Temperature 196 | . . 196 39 Average Temperature 37 | . . 83 12 Received Heat Transfer 360 | . 36 24 300 Siege Activations . | . . . . Robots Corrupted . | . . . . Combat Hostiles . | . . . . Parts Fried . | . . . . Impact Corruptions . | . . . . Robots Melted . | . . . . Combat Hostiles . | . . . . Parts Melted . | . . . . Heat Transferred . | . . . . Parts Sabotaged . | . . . . Parts Stolen . | . . . . Parts Stripped . | . . . . Power Chain Reactions . | . . . . Alert | -11 -10 -10 -9 ------- Run | Yrd Mat Min Mat Peak Influence 196 | . 91 70 196 Initial 33 | . . 33 27 Average 38 | . 43 27 75 Maximum Alert Level . | . . . . Low Security (%) 100 | 100 100 100 100 Level 1 . | . . . . Level 2 . | . . . . Level 3 . | . . . . Level 4 . | . . . . Level 5 . | . . . . High Security . | . . . . Max Security . | . . . . Squads Dispatched 2 | . 1 . 1 Investigation 1 | . 1 . . Extermination . | . . . . Reinforcement 1 | . . . 1 Assault . | . . . . Garrison . | . . . . Intercept . | . . . . Searches Triggered . | . . . . Construction Impeded . | . . . . Haulers Reinforced . | . . . . Active Scanning Responses . | . . . . Cargo Convoy Interrupts . | . . . . Stealth | -11 -10 -10 -9 --------- Run | Yrd Mat Min Mat Distress Signals 1 | . 1 . . Communications Jammed . | . . . . Distress Signals . | . . . . Times Spotted 39 | . 14 9 16 Peak Tracking Total 5 | . 5 3 3 Tactical Retreats 4 | . . 1 3 Traps | -11 -10 -10 -9 ------- Run | Yrd Mat Min Mat Traps Triggered 3 | . 3 . . Indirectly . | . . . . Trap Hack Attempts . | . . . . Triggered . | . . . . Disarmed . | . . . . Reprogrammed . | . . . . Reused . | . . . . Traps Extracted . | . . . . Installed . | . . . . Triggered . | . . . . Machines | -11 -10 -10 -9 ---------- Run | Yrd Mat Min Mat Machines Disabled . | . . . . Max in Single Turn . | . . . . Machines Repaired . | . . . . Machines Dismantled . | . . . . Machines Sabotaged . | . . . . Overloaded Fab Kills . | . . . . Hacking | -11 -10 -10 -9 --------- Run | Yrd Mat Min Mat Machines Accessed 3 | . 2 1 . Terminals 2 | . 2 . . Fabricators . | . . . . Repair Stations . | . . . . Recycling Units . | . . . . Scanalyzers . | . . . . Garrison Access . | . . . . Total Hacks 7 | . 6 1 . Successful 4 | . 3 1 . Failed 3 | . 3 . . Catastrophic . | . . . . Database Lockouts . | . . . . Manual . | . . . . Terminals 6 | . 6 . . Fabricators . | . . . . Repair Stations . | . . . . Recycling Units . | . . . . Scanalyzers . | . . . . Garrison Access . | . . . . Terminal Hacks 4 | . 3 1 . Open Door 1 | . . 1 . Unreport Threat 2 | . 2 . . Locate Traps 1 | . 1 . . Fabricator Hacks . | . . . . Repair Station Hacks . | . . . . Recycling Unit Hacks . | . . . . Scanalyzer . | . . . . Garrison Access Hacks . | . . . . Unauthorized Hacks . | . . . . Terminals . | . . . . Fabricators . | . . . . Repair Stations . | . . . . Recycling Units . | . . . . Scanalyzers . | . . . . Garrison Access . | . . . . Data Cores Recovered . | . . . . Used . | . . . . Hacking Detections 1 | . 1 . . Full Trace Events . | . . . . Feedback Events . | . . . . Feedback Blocked . | . . . . Robot Schematics Acquired . | . . . . Robots Built . | . . . . Authchips . | . . . . Time . | . . . . Total Robot Build Rating . | . . . . Part Schematics Acquired . | . . . . Parts Built . | . . . . Authchips . | . . . . Time . | . . . . Total Part Build Rating . | . . . . Parts Repaired . | . . . . Time . | . . . . Parts Recycled . | . . . . Recycled Matter . | . . . . Retrieved Matter . | . . . . Retrieved Components . | . . . . Parts Scanalyzed . | . . . . Part Schematics Acquired . | . . . . Parts Damaged . | . . . . Bothacking | -11 -10 -10 -9 ------------ Run | Yrd Mat Min Mat Used RIF Installer . | . . . . Robots Hacked . | . . . . Non-combat . | . . . . Combat . | . . . . Robot Hacks Applied . | . . . . Relay Couplers Released . | . . . . Fabnet Peak Effective % . | . . . . Robots Rewired . | . . . . Allies Hacked . | . . . . Hacks Repelled . | . . . . Allies | -11 -10 -10 -9 -------- Run | Yrd Mat Min Mat Total Allies . | . . . . Largest Group . | . . . . Highest-Rated Group . | . . . . Highest-Rated Ally . | . . . . Total Orders . | . . . . Ally Attacks 6 | . . 6 . Total Damage 32 | . . 32 . Kills . | . . . . Allies Corrupted . | . . . . Allies Melted . | . . . . Intel | -11 -10 -10 -9 ------- Run | Yrd Mat Min Mat Robot Analysis Total . | . . . . Derelict Logs Recovered 1 | . . 1 . Drone Launches 6 | . . 6 . Drone Recoveries 6 | . . 6 . Exploration | -11 -10 -10 -9 ------------- Run | Yrd Mat Min Mat Turns Passed 2612 | 72 334 1678 528 Spaces Moved 1016 | 48 160 588 220 Core 14 | 14 . . . Treads 1002 | 34 160 588 220 Legs . | . . . . Wheels . | . . . . Hover . | . . . . Flight . | . . . . Fastest Speed 50 | 50 160 160 160 Average Speed 158 | 135 160 160 160 Slowest Speed 160 | 160 160 160 160 Overloaded Moves . | . . . . Propulsion Burnouts . | . . . . Robots Hopped . | . . . . Cave-ins Triggered . | . . . . Exploration Rate (%) 41 | 5 37 98 27 Regions Visited 3 Branch Regions 1 Pre-discovered Areas . | . . . . Known Exits Taken . | . . . . Unknown Exits Taken 3 | 1 1 1 . Scrap Searched 3 | . . 3 . Spaces Dug . | . . . . Terrain Destroyed . | . . . . Melee . | . . . . Projectile . | . . . . AOE . | . . . . Terrain Rammed . | . . . . Walls Destroyed . | . . . . Machines Disabled . | . . . . Actions | -11 -10 -10 -9 --------- Run | Yrd Mat Min Mat Total 1848 | 53 190 1284 321 Wait 729 | . 4 672 53 Move 1013 | 47 159 587 220 Hop . | . . . . Pick Up 4 | 1 2 . 1 Fast Attach 11 | 5 . 3 3 Attach 1 | . . . 1 Detach 1 | . . 1 . Swap 1 | . 1 . . Drop 1 | . . . 1 Fire 86 | . 24 20 42 Melee . | . . . . Ram . | . . . . Kick . | . . . . Crush 1 | . . 1 . Escape Stasis . | . . . . Rewire . | . . . . Trap . | . . . . Miscellaneous . | . . . . Route ------- -11/Scrapyard -10/Materials -10/Mines (discovered 3 exits: *Mat x2 / Sub) -9/Materials History --------- Turn | Location | Event 11 | -11/Scrapyard | Discovered new exit (range 16) 73 | -11/Scrapyard | Entered Materials 305 | -10/Materials | Build established: Mutant 385 | -10/Materials | Discovered new exit (range 9) 407 | -10/Materials | Entered Mines 446 | -10/Mines | Found a hidden stash of uninstalled traps 490 | -10/Mines | Found the Drone Emporium 498 | -10/Mines | Found Prototype Device 498 | -10/Mines | Identified Splice Drone Bay 853 | -10/Mines | Discovered new exit (range 13) 2074 | -10/Mines | Identified exit to Subcaves 2077 | -10/Mines | Discovered new exit (range 2) 2085 | -10/Mines | Entered Materials 2085 | -9/Materials | Evolved 2 slots: Propulsion x1, Utility x1 2535 | -9/Materials | Build established: Scavenger-Mutant 2613 | -9/Materials | Self-destructed Last Messages --------------- 02369_ Acquired 51 matter. 02371_ K-01 Serf collects debris. 02420_ O-16 Technician destroyed. 02429_ G-34 Mercenary destroyed. 02429_ U-05 Engineer builds a Door. 02430_ Acquired 27 matter. 02436_ K-01 Serf collects debris. 02468_ G-34 Mercenary destroyed. 02501_ Acquired 31 matter. 02530_ Assault Rifle destroyed. 02538_ G-34 Mercenary destroyed. 02541_ Acquired 42 matter. 02585_ Acquired Autogun. 02594_ Lgt. Nuclear Core destroyed. 02603_ Assault Rifle destroyed. 02605_ K-01 Serf cleans the Nuclear Reactor. 02609_ Lgt. Treads destroyed. 02610_ Y-45 Defender destroyed. 02612_ K-01 Serf collects debris. Map ----- +----------------------------------------------------+ | ?????????????????????????????????????????????????? | | ?????????????????????????????????????????????????? | | ?????????????????????????????????????????????????? | | ?????????????????????????????????????????????????? | | ?????????????????????????????????????????????????? | | ?????????????????????????????????????????????????? | | ?????????????????????????????????????????????????? | | ?????????????????????????????????????????????????? | | ?????????????????????????????????????????????????? | | ?????????????????????????????????????????????????? | | ?????????????????????????????????????????????????? | | ?????????????????????????????????????????????????? | | ?????????????????????????????????????????????????? | | ?????????????????????????????????????????????????? | | ?????????????????????????????????????????????????? | | ??????????? ???????????????????????????????????? | | ??????????# ???????????????????????????????????? | | ??????????# #??????????????????????????????????? | | ??????????# #????????##????????????????????????? | | ??????????# ########## ##??????????????????????? | | ??????????# # !=#??????????????????????? | | ??????????# # T%#??####????????????????? | | ??????????# # [*#??# ?????????????????? | | ??????????+ +?? k #??# #?????????????????? | | ??????????# #??"" """ #### #########?????????? | | ??????????# #??"" """ @g ## #?????????? | | ??????????# #??"" """ # ## #?????????? | | ??????????# ############# ## !] #?????????? | | #?????????# ## !] !#?????????? | | #?????????# + !! #?????????? | | ########??# [! # #?????????? | | # * #??# #####+#########+###+########?????????? | | # """[%#### ## % #?? ???????????????? | | # """*%+== ## """ # ?????????????? | | # """ =#/ ## """ # #????????????? | | # """ # = ## """ # #????????????? | | # #[! ## # #????????????? | | ######## ## """ # #????????????? | | ########= ## """ ###+###########????????????? | | ! = %## ??? #?# ?????????????????####### | | ###########+## ??? #?# #?????????????? # | | ####### ! #?????####?# #????????????# # | | ## ## "" #??????????# ########?????# # | | ## ## """#??????????# #?????# """ # | | ## ## R"#??????????# #?????# """ ""# | | ## ## """#??????????# ####### """ Y"# | | ## ## #??????????# # ""? | | ?? #######+#??######### #?? ??? | | #? ??????# #??# # #####+##### | | ##/######## #??# """ + | +----------------------------------------------------+ Best States ------------- Heat Dissipation 28 Energy Generation 14 Energy Capacity 250 Matter Stores 300 Matter Capacity 300 Sight Range 16 Terrain Scan Density 10 Armor Coverage 225 Evasion (%) 40 Recoil Reduction 3 Item Schematics ----------------- None Robot Schematics ------------------ None Fabricated ------------ Nothing Alien Tech Used ----------------- None Achievements -------------- Release The Drones! Challenges ------------ None Game ------ Seed SignalNuclearScrapsphere Manual? 0 Play Time 00:13:50 Cumulative 27.7 hours Start 2024.10.06 @ 12:29:01 End 2024.10.06 @ 12:40:00 Sessions 1 Manual Loads 0 Difficulty Rogue Special Mode None Game No. 47 Rogue 43 Adventurer 4 Explorer 0 Win Type - Total 2 Types 2/0/0/0/0/0/0/0/0 Lore% 26 Gallery% 27 Achievement% 33 Wizard Run 0 Options --------- Layout 1 ASCII 0 Keyboard 0 Movement Mouse Keybinds 0 Fullscreen 1 Font 32/SmallcapsGlow Map View 50x35 Zoom Use 0% Tactical HUD 1 Map Filters NONE Filters NONE Steam 1 RUN: 093714c3-deee-4da2-bbdd-6f7aaa6b5df3